Cogmind - Beta 16 @@@ ROGUE MODE // 2025.11.01 @ 18:12:48 Player: Palikka Result: Destroyed by G-67 Veteran with Plasma Rifle Performance ------------- Evolutions (7) 3500 Regions Visited (12) 2400 Robots Destroyed (138) 690 Value Destroyed (4722) 4722 Prototype IDs (20) 400 Alien Tech Used (2) 400 Bonus (338) 338 TOTAL SCORE: 12450 Bonus ------- High Alert Combat Kills 38 Met Zhirov 300 Cogmind --------- Core Integrity 0/1300 Matter 284/300 Energy 100/100 System Corruption 0% Temperature Cool (12) Movement Core (50) Location -3/Research Parts ------- > --- POWER (2) -------- (None) > --- PROPULSION (6) --- (None) > --- UTILITY (10) ----- (None) > --- WEAPON (3) ------- (None) > --- INVENTORY (5) ---- Advanced Coolant Injector Large Storage Unit High-capacity Matter Pod (0) Heavy Plasma Cannon Linear Accelerator Peak State ------------ > --- POWER ------------ Micro Fission Core Light Antimatter Reactor > --- PROPULSION ------- Improved Medium Treads Improved Medium Treads Armored Medium Treads Spiked Heavy Treads > --- UTILITY ---------- Advanced Heat Sink Advanced Coolant Injector Large Storage Unit Enhanced Optical Array Improved Signal Interpreter Improved Targeting Computer Core Analyzer Armor Integrity Analyzer Improved Medium Armor Plating Advanced Force Field > --- WEAPON ----------- Quantum Rifle Heavy Plasma Cannon > --- INVENTORY -------- Improved Treads Advanced Cooling System Coolant Injector High-capacity Matter Pod Advanced Sensor Array Improved Medium Armor Plating System Shield High-powered Tractor Beam Quantum Rifle Heavy Plasma Cannon Heavy Plasma Cannon Coil Gun Railgun Rocket Launcher Mini Grenade Launcher [Rating: 105] Favorites ----------- Power Improved Ion Engine Engine Improved Ion Engine Power Core Micro Fission Core Reactor Heavy Antimatter Reactor Propulsion Improved Treads Treads Improved Treads Leg Myomer Leg Hover Unit Antigrav System Flight Unit Xenon Bombardment Thruster Utility Large Storage Unit Device Advanced Heat Sink Storage Large Storage Unit Processor Core Analyzer Hackware Hacking Suite Protection Improved Medium Armor Plating Weapon Heavy Plasma Cannon Energy Gun Quantum Rifle Energy Cannon Heavy Plasma Cannon Ballistic Gun Light Assault Rifle Launcher Mini Grenade Launcher Special Weapon CPS Tube Build | -11 -10 -9 -8 -7 -6 -5 -4 -4 -4 -4 -3 -3 ------- Run | Yrd Mat Mat Mat Fac Fac Fac Fac Upp Upp Zhi Pro Res Slots Evolved 14 | . . 2 2 2 2 2 2 . . . . 2 Power 1 | . . . . . . 1 . . . . . . Propulsion 4 | . . 1 . 1 . 1 . . . . . 1 Utility 8 | . . 1 2 1 2 . 2 . . . . . Weapon 1 | . . . . . . . . . . . . 1 Parts Attached 117 | 8 14 26 4 9 5 14 11 5 1 5 8 7 Power 13 | 1 1 1 . 2 . 4 2 . . 1 1 . Engine 6 | 1 1 1 . 1 . 2 . . . . . . Core 4 | . . . . 1 . 2 1 . . . . . Reactor 3 | . . . . . . . 1 . . 1 1 . Propulsion 31 | 2 2 11 . 2 1 4 1 1 . 2 1 4 Treads 25 | 2 2 11 . 2 1 4 1 1 . 1 . . Leg 2 | . . . . . . . . . . 1 . 1 Wheel . | . . . . . . . . . . . . . Hover 1 | . . . . . . . . . . . . 1 Flight 3 | . . . . . . . . . . . 1 2 Utility 49 | 2 6 10 1 4 2 4 7 3 1 2 4 3 Device 20 | 1 3 3 . 3 . 2 1 2 1 . 1 3 Storage 8 | 1 3 2 . . . . . . . 1 1 . Processor 8 | . . 1 1 . 1 . 4 1 . . . . Hackware 1 | . . . . . . . 1 . . . . . Protection 12 | . . 4 . 1 1 2 1 . . 1 2 . Artifact . | . . . . . . . . . . . . . Weapon 24 | 3 5 4 3 1 2 2 1 1 . . 2 . Energy Gun 4 | 3 . . . . . . . 1 . . . . Energy Cannon 6 | . . 1 1 . 2 1 1 . . . . . Ballistic Gun 11 | . 5 3 2 1 . . . . . . . . Ballistic Cannon . | . . . . . . . . . . . . . Launcher 2 | . . . . . . 1 . . . . 1 . Special Weapon 1 | . . . . . . . . . . . 1 . Impact Weapon . | . . . . . . . . . . . . . Slashing Weapon . | . . . . . . . . . . . . . Piercing Weapon . | . . . . . . . . . . . . . Special Melee Weapon . | . . . . . . . . . . . . . Unidentified Prototypes 7 | . . 2 . . . . . . . 4 . 1 Parts Lost 41 | . 1 4 . 2 . . 5 . 3 . 20 6 Power 7 | . . 1 . 1 . . 2 . 2 . 1 . Propulsion 10 | . . . . . . . 1 . . . 5 4 Utility 18 | . 1 3 . 1 . . 1 . 1 . 9 2 Weapon 6 | . . . . . . . 1 . . . 5 . Highest Loss Streak 15 | . 1 1 . 1 . . 3 . 3 . 15 3 To Critical Strikes . | . . . . . . . . . . . . . Average Backups 13 | 3 8 13 14 14 14 14 14 14 14 15 14 4 Power . | . 1 1 1 1 1 . . . . . . . Propulsion 1 | 2 1 2 2 1 1 . . 1 1 . . . Utility 5 | . 2 4 5 5 6 7 6 7 5 6 5 3 Weapon 5 | . 2 5 6 6 6 6 5 6 7 7 6 1 Tool/Special . | . . . . . . . . . . . . . Unused Backups 34 | . 8 11 1 1 3 . . 2 2 1 4 1 Power 4 | . 2 1 . 1 . . . . . . . . Propulsion 9 | . 4 4 . . . . . 1 . . . . Utility 6 | . . 3 . . . . . 1 . 1 1 . Weapon 15 | . 2 3 1 . 3 . . . 2 . 3 1 Tool/Special . | . . . . . . . . . . . . . Average Slot Usage (%) 91 | . 99 98 96 99 99 99 96 94 84 76 80 9 Engine 3 | . 14 10 9 2 . 4 3 . . . . . Core 1 | . . . . 4 6 6 5 5 . . . . Reactor 1 | . . . . . . . . 5 . 2 4 . Treads 25 | . 28 33 27 30 26 28 24 21 21 21 19 . Device 15 | . 13 11 16 22 20 17 15 15 15 14 19 6 Storage 7 | . 14 11 9 7 6 5 5 5 5 5 4 . Processor 13 | . . . 7 7 12 11 17 25 26 26 15 . Protection 6 | . . 9 9 7 12 11 9 5 5 4 4 . Energy Gun 2 | . 11 . . . . . . 2 5 . 4 . Energy Cannon 5 | . . 4 5 7 11 10 9 7 5 . 4 . Ballistic Gun 5 | . 15 17 12 7 1 . . . . . . . Peak Build Rating 105 | 7 10 23 29 38 47 72 88 105 105 96 96 27 Average Rating 58 | 5 8 18 26 36 45 63 81 97 88 77 87 17 On Entrance 46 | . 7 10 23 29 36 47 72 85 105 86 96 2 Avg Prop Armor Cover (%) 18 | . . . . . . . . . 17 20 . 28 Naked Turns 40 | . . . . . . . . . . . 25 15 Heaviest Build 98 | 15 28 41 47 50 53 70 74 77 60 78 98 13 Greatest Support 162 | 40 40 69 69 92 97 146 146 162 162 155 155 15 Greatest Overweight (x) 2 | 2 . . . . . . . . . . . 1 Average Overweight (x) . | . . . . . . . . . . . . . Largest Inventory Capacity 25 | 8 25 15 15 15 15 15 15 15 15 15 15 5 Average Capacity 14 | 7 9 15 15 15 15 15 15 15 15 15 14 5 Most Carried 15 | 6 10 15 15 15 15 15 15 15 15 15 15 5 Average Carried 13 | 4 8 13 14 14 14 14 14 14 14 14 14 4 Final Capacity 15 | 8 15 15 15 15 15 15 15 15 15 15 5 5 Final Carried 15 | 5 10 15 15 15 15 15 14 15 15 15 5 5 Class Distribution -------------------- 38% | Scavenger-Mutant 31% | Scavenger-Skirmisher 30% | Mutant Dominant Class ---------------- Mutant | -10/Materials Mutant | -9/Materials Mutant | -8/Materials Scavenger-Mutant | -7/Factory Mutant | -6/Factory Scavenger-Mutant | -5/Factory Scavenger-Mutant | -4/Factory Scavenger-Skirmisher | -4/Upper Caves Scavenger-Skirmisher | -4/Upper Caves Scavenger-Mutant | -4/Zhirov Scavenger-Mutant | -3/Proximity Caves Mutant | -3/Research Resources | -11 -10 -9 -8 -7 -6 -5 -4 -4 -4 -4 -3 -3 ----------- Run | Yrd Mat Mat Mat Fac Fac Fac Fac Upp Upp Zhi Pro Res Matter Collected 2497 | 280 349 937 65 152 34 212 105 70 15 . 239 39 Remotely . | . . . . . . . . . . . . . Salvage Created 6150 | 102 578 2536 49 258 43 207 1125 . 465 . 748 39 Parts 278 | 9 44 134 3 16 2 12 34 . 4 . 19 1 Haulers Intercepted 5 | . 1 4 . . . . . . . . . . Recyclers Shooed 14 | . 2 5 . . 1 1 5 . . . . . Parts Field Recycled . | . . . . . . . . . . . . . Retrieved Matter . | . . . . . . . . . . . . . Parts Self-Destructed 12 | . . . . . . . . . 3 . 9 . Prevented 4 | . . . . . . . . 4 . . . . Parts Restored . | . . . . . . . . . . . . . Kills | -11 -10 -9 -8 -7 -6 -5 -4 -4 -4 -4 -3 -3 ------- Run | Yrd Mat Mat Mat Fac Fac Fac Fac Upp Upp Zhi Pro Res Combat Hostiles Destroyed 99 | . 12 44 1 6 1 3 9 . 3 . 19 1 Guns 45 | . 12 23 1 5 . . . . 1 . 3 . Cannons 29 | . . 19 . 1 1 . 6 . 1 . . 1 AOE 17 | . . . . . . 3 . . . . 14 . Classes Destroyed 16 | 2 6 2 1 1 . . 1 . 1 . 2 . Worker 7 | . 3 1 . . . 2 1 . . . . . Builder 5 | . 1 2 . . . 1 1 . . . . . Tunneler 2 | 2 . . . . . . . . . . . . Hauler 5 | . 1 4 . . . . . . . . . . Recycler 11 | 1 1 6 . . . . 3 . . . . . Operator 2 | . . 1 . . . 1 . . . . . . Watcher 7 | . 1 5 . . . . 1 . . . . . Swarmer 23 | . 6 6 . 3 . . . . . . 7 1 Grunt 51 | . 6 30 . . . 2 2 . 2 . 9 . Brawler 1 | . . . . . . . . . . . 1 . Duelist 1 | . . . . . . . . . . . 1 . Sentry 11 | . . 8 . 1 . . . . 1 . 1 . Specialist 2 | . . . . . . . 2 . . . . . Hunter 7 | . . . 1 1 . 1 4 . . . . . Programmer 3 | . . . . 1 1 . 1 . . . . . Decomposer 6 | . . . . . . . . . 6 . . . Samaritan 1 | . . . . . . . . . 1 . . . Best Kill Streak 7 | 2 7 7 1 3 1 6 5 . 2 . 5 1 Combat Bots Only 6 | . 5 6 1 3 1 3 5 . 2 . 5 1 Max Kills in Single Turn 3 | 1 2 2 1 1 1 3 2 . 1 . 2 1 Gunslinging . | . . . . . . . . . . . . . Exploded 2 | . . . . . . 2 . . . . 2 . Melee . | . . . . . . . . . . . . . Uniques/NPCs Destroyed . | . . . . . . . . . . . . . Combat | -11 -10 -9 -8 -7 -6 -5 -4 -4 -4 -4 -3 -3 -------- Run | Yrd Mat Mat Mat Fac Fac Fac Fac Upp Upp Zhi Pro Res Hostile Shots Fired 951 | . 69 220 6 67 3 22 161 18 59 . 162 164 Missed 325 | . 19 55 . 32 1 8 64 7 14 . 49 76 Hits 626 | . 50 165 6 35 2 14 97 11 45 . 113 88 Melee 5 | . . . . . . . . . . . 5 . Projectile 621 | . 50 165 6 35 2 14 97 11 45 . 108 88 Critical Strikes 20 | . . 4 . 1 . . 2 . 3 . 8 2 Damage Taken 10239 | 22 476 2030 98 412 119 286 1320 232 855 . 2533 1856 Core 2255 | . 82 189 . 22 . 42 41 . 32 . 640 1207 Absorbed by Shields 141 | . . . . . . . . . 49 . 92 . Redirected to Shielding 24 | . . . . . . . . . . . 24 . Regen/Repaired (Parts) 45 | . . 45 . . . . . . . . . . Core Remaining (%) 81 | 100 67 52 100 96 100 95 . . . . 38 . Volleys Fired 462 | 6 57 169 5 18 6 15 41 3 36 . 102 4 Largest 2 | 2 2 2 2 2 2 2 2 1 2 . 2 1 Hottest 184 | 90 90 91 103 108 170 170 180 90 184 . 184 90 Shots Fired 804 | 12 114 339 10 35 11 28 79 3 47 . 122 4 Gun 479 | 12 114 277 5 18 1 . . . 36 . 16 . Cannon 298 | . . 62 5 17 10 26 79 3 11 . 81 4 Launcher 27 | . . . . . . 2 . . . . 25 . Special . | . . . . . . . . . . . . . Kinetic 403 | . 102 277 5 18 1 . . . . . . . Thermal 362 | 1 11 62 5 17 10 26 79 3 47 . 97 4 Explosive 27 | . . . . . . 2 . . . . 25 . Electromagnetic 12 | 11 1 . . . . . . . . . . . Robot Hit Streak 27 | 4 13 27 2 18 5 4 16 . 13 . 7 9 Robot Miss Streak 9 | 2 5 9 2 3 2 4 3 . 3 . 6 1 Penetration Max 1 | . . . . 1 . . . . . . . . Secondary Targets 6 | . 2 4 . . . . . . . . . . Max Gunslinging Chain 1 | . 1 1 . . . . . . . . . . Shots Hit Robots 489 | 7 69 228 5 26 5 17 54 . 35 . 40 3 Core Hits 261 | 4 37 98 2 11 3 11 32 . 14 5 42 2 Critical Kills 7 | . 2 2 . . . . 1 . . . 2 . Critical Parts Destroyed 1 | . . . . 1 . . . . . . . . Critical Strikes 8 | . 2 2 . 1 . . 1 . . . 2 . Meltdown 5 | . . 2 . . . . 1 . . . 2 . Destroy 3 | . 2 . . 1 . . . . . . . . Melee Attacks . | . . . . . . . . . . . . . Impact . | . . . . . . . . . . . . . Slashing . | . . . . . . . . . . . . . Piercing . | . . . . . . . . . . . . . Sneak Attacks . | . . . . . . . . . . . . . Combat Hostiles . | . . . . . . . . . . . . . Follow-up Attacks . | . . . . . . . . . . . . . Damage Inflicted 11578 | 132 622 3120 106 566 164 915 1823 . 1059 194 2766 111 Guns 4147 | 88 622 2021 33 285 17 . . . 737 . 344 . Cannons 4633 | . . 986 73 281 147 471 1823 . 306 . 452 94 Explosions 2565 | 44 . 113 . . . 444 . . . . 1964 . Melee . | . . . . . . . . . . . . . Ramming 233 | . . . . . . . . . 16 194 6 17 Kinetic 2866 | . 510 2021 33 285 17 . . . . . . . Thermal 5882 | 56 112 986 73 281 147 471 1823 . 1043 . 796 94 Explosive 2521 | . . 113 . . . 444 . . . . 1964 . Electromagnetic 76 | 76 . . . . . . . . . . . . Impact . | . . . . . . . . . . . . . Slashing . | . . . . . . . . . . . . . Piercing . | . . . . . . . . . . . . . Highest Corruption 12 | . . 2 . . . . . . 4 4 12 . Average Corruption 4 | . . 2 . . . . . . 2 4 9 . Corruption Purged . | . . . . . . . . . . . . . Corruption Blocked . | . . . . . . . . . . . . . Effects 86 | . . 26 . . . . . . 1 5 54 . Message Errors 23 | . . 9 . . . . . . . 1 13 . Matter Fused 18 | . . 5 . . . . . . 1 1 11 . Heat Flow Errors 8 | . . 3 . . . . . . . . 5 . Energy Discharges 8 | . . 1 . . . . . . . 2 5 . Parts Rejected 1 | . . . . . . . . . . . 1 . Parts Fused 2 | . . . . . . . . . . . 2 . Data Loss (minor) 15 | . . 3 . . . . . . . 1 11 . Data Loss (major) 4 | . . 2 . . . . . . . . 2 . Misfires 3 | . . 2 . . . . . . . . 1 . Alerts 2 | . . . . . . . . . . . 2 . Misdirections 1 | . . . . . . . . . . . 1 . Weapon Failures 1 | . . 1 . . . . . . . . . . Overload Shots . | . . . . . . . . . . . . . Overflow Damage 62 | . . 1 . . . 17 3 . 6 . 35 . Projectiles 27 | . . 1 . . . 17 3 . 6 . . . Explosions 35 | . . . . . . . . . . . 35 . Melee . | . . . . . . . . . . . . . Knockbacks . | . . . . . . . . . . . . . Impact . | . . . . . . . . . . . . . Kinetic . | . . . . . . . . . . . . . Secondary . | . . . . . . . . . . . . . Self-Inflicted Damage 93 | 22 . . . . . . . . . . 63 8 Shots 4 | 1 . . . . . . . . . . 3 . Rammed 64 | . . . . . . . . . 5 54 2 3 Targets Rammed 64 | . . . . . . . . . 5 54 2 3 Kicked . | . . . . . . . . . . . . . Crushed . | . . . . . . . . . . . . . Highest Temperature 233 | 54 30 233 . 5 185 117 196 12 196 . 196 . Average Temperature 67 | 26 10 55 . 5 94 45 74 7 65 . 109 . Received Heat Transfer 1784 | . 156 927 . 42 18 36 33 78 107 . 315 72 Siege Activations . | . . . . . . . . . . . . . Martial Activations . | . . . . . . . . . . . . . Shielding Activations . | . . . . . . . . . . . . . Robots Disrupted . | . . . . . . . . . . . . . Combat Hostiles . | . . . . . . . . . . . . . Robots Corrupted 2 | . . . . . . . . . 1 1 . . Combat Hostiles 1 | . . . . . . . . . . 1 . . Parts Fried 2 | 2 . . . . . . . . . . . . Impact Corruptions 3 | . . . . . . . . . 1 2 . . Robots Melted 8 | . . 2 . . . . 3 . 1 . 2 . Combat Hostiles 8 | . . 2 . . . . 3 . 1 . 2 . Parts Melted 30 | . . 4 . 1 1 1 9 . 7 . 7 . Heat Transferred 9702 | 87 333 1776 150 550 250 800 3050 . 1412 . 1144 150 Parts Sabotaged . | . . . . . . . . . . . . . Parts Stolen . | . . . . . . . . . . . . . Parts Stripped . | . . . . . . . . . . . . . Power Chain Reactions 1 | 1 . . . . . . . . . . . . Alert | -11 -10 -9 -8 -7 -6 -5 -4 -4 -4 -4 -3 -3 ------- Run | Yrd Mat Mat Mat Fac Fac Fac Fac Upp Upp Zhi Pro Res Maximum Alert Level 2 | . 1 2 . . . . . . . . . . Low Security (%) 82 | 100 97 48 100 100 100 100 100 . . . . 100 Level 1 12 | . 2 37 . . . . . . . . . . Level 2 4 | . . 14 . . . . . . . . . . Level 3 . | . . . . . . . . . . . . . Level 4 . | . . . . . . . . . . . . . Level 5 . | . . . . . . . . . . . . . High Security . | . . . . . . . . . . . . . Max Security . | . . . . . . . . . . . . . Peak Influence 477 | 5 208 477 190 70 31 111 157 . . . . 116 Initial 190 | . . 47 190 7 8 . . . . . . 69 Average 99 | 1 76 218 86 7 2 28 48 . . . . 81 Influence Increases 3101 | 15 357 1331 32 160 33 120 306 30 65 5 470 177 Destroy 0b10 Robot/C 1980 | . 240 880 20 120 20 60 180 . 60 . 380 20 Destroy 0b10 Robot/NC 205 | 15 35 95 . . . 20 30 . 5 5 . . Destroy Leader 444 | . 64 218 10 40 10 20 52 . . . 30 . Successful Hack 89 | . 18 66 . . . . . . . . . 5 Disable Machine 60 | . . 45 . . . . 15 . . . . . Destroy Structure 53 | . . 12 2 . 3 20 14 . . . . 2 Partial Spotted 30 | . . . . . . . . . . . . 30 Lose Combat Pursuer 240 | . . 15 . . . . 15 30 . . 60 120 Influence Decreases 3005 | 15 244 993 467 158 51 118 195 133 75 5 366 185 Entered New Map 427 | . . 66 261 9 10 . 2 42 2 . . 35 Time Decay 1880 | 15 234 587 206 139 41 118 143 91 45 5 166 90 Lost Part 388 | . 10 40 . 10 . . 50 . 28 . 190 60 Lost Ally 10 | . . . . . . . . . . . 10 . Purge Threat 300 | . . 300 . . . . . . . . . . Squads Dispatched 34 | . 3 6 3 6 4 3 7 . . . 1 1 Investigation 3 | . 1 2 . . . . . . . . . . Extermination 6 | . . . . 3 2 . 1 . . . . . Reinforcement 19 | . 2 3 . 2 2 3 6 . . . . 1 Assault 2 | . . 1 . . . . . . . . 1 . Garrison 4 | . . . 3 1 . . . . . . . . Intercept . | . . . . . . . . . . . . . Searches Triggered . | . . . . . . . . . . . . . Construction Impeded . | . . . . . . . . . . . . . Haulers Reinforced 1 | . . . . . . 1 . . . . . . Active Scanning Responses . | . . . . . . . . . . . . . Cargo Convoy Interrupts . | . . . . . . . . . . . . . Stealth | -11 -10 -9 -8 -7 -6 -5 -4 -4 -4 -4 -3 -3 --------- Run | Yrd Mat Mat Mat Fac Fac Fac Fac Upp Upp Zhi Pro Res Distress Signals 17 | . 4 6 . 1 2 . 2 . . . . 2 Communications Jammed . | . . . . . . . . . . . . . Distress Signals . | . . . . . . . . . . . . . Times Spotted 215 | . 20 63 7 9 7 15 29 3 4 . 27 31 Peak Tracking Total 16 | . 6 6 3 7 4 4 6 3 3 . 8 16 Tactical Retreats 9 | . . 1 . . . . 1 2 . . 1 4 Traps | -11 -10 -9 -8 -7 -6 -5 -4 -4 -4 -4 -3 -3 ------- Run | Yrd Mat Mat Mat Fac Fac Fac Fac Upp Upp Zhi Pro Res Traps Triggered 5 | . 1 3 . . . 1 . . . . . . Indirectly . | . . . . . . . . . . . . . Trap Hack Attempts . | . . . . . . . . . . . . . Triggered . | . . . . . . . . . . . . . Disarmed . | . . . . . . . . . . . . . Reprogrammed . | . . . . . . . . . . . . . Reused . | . . . . . . . . . . . . . Traps Extracted . | . . . . . . . . . . . . . Installed . | . . . . . . . . . . . . . Triggered . | . . . . . . . . . . . . . Machines | -11 -10 -9 -8 -7 -6 -5 -4 -4 -4 -4 -3 -3 ---------- Run | Yrd Mat Mat Mat Fac Fac Fac Fac Upp Upp Zhi Pro Res Machines Disabled 5 | . . 3 . . . . 1 . . . 1 . Max in Single Turn 2 | . . 2 . . . . 1 . . . 1 . Machines Repaired . | . . . . . . . . . . . . . Machines Dismantled . | . . . . . . . . . . . . . Machines Sabotaged . | . . . . . . . . . . . . . Overloaded Fab Kills . | . . . . . . . . . . . . . Hacking | -11 -10 -9 -8 -7 -6 -5 -4 -4 -4 -4 -3 -3 --------- Run | Yrd Mat Mat Mat Fac Fac Fac Fac Upp Upp Zhi Pro Res Machines Accessed 27 | . 6 11 1 . . . 1 1 1 4 . 2 Terminals 17 | . 6 8 1 . . . . . . . . 2 Fabricators . | . . . . . . . . . . . . . Repair Stations 2 | . . 2 . . . . . . . . . . Recycling Units 1 | . . . . . . . 1 . . . . . Scanalyzers 1 | . . 1 . . . . . . . . . . Garrison Access . | . . . . . . . . . . . . . Total Hacks 72 | . 11 35 3 . . . 1 1 1 17 . 3 Successful 43 | . 4 17 1 . . . 1 1 1 17 . 1 Failed 29 | . 7 18 2 . . . . . . . . 2 Catastrophic 6 | . 2 4 . . . . . . . . . . Database Lockouts . | . . . . . . . . . . . . . Manual 18 | . 7 7 2 . . . . . . . . 2 Terminals 42 | . 11 25 3 . . . . . . . . 3 Fabricators . | . . . . . . . . . . . . . Repair Stations 4 | . . 4 . . . . . . . . . . Recycling Units 1 | . . . . . . . 1 . . . . . Scanalyzers 6 | . . 6 . . . . . . . . . . Garrison Access . | . . . . . . . . . . . . . Terminal Hacks 28 | . 1 7 . . . . . 1 1 17 . 1 Record 5 | . . . . . . . . . . 5 . . Part Schematic 4 | . . . . . . . . . . 4 . . Robot Analysis 4 | . . . . . . . . . . 4 . . Prototype ID Bank 6 | . 1 1 . . . . . . . 4 . . Open Door 2 | . . . . . . . . 1 1 . . . Open DSF 1 | . . . . . . . . . . . . 1 Emergency Access Points 1 | . . 1 . . . . . . . . . . Unreport Threat 2 | . . 2 . . . . . . . . . . Locate Traps 1 | . . 1 . . . . . . . . . . Zone Layout 2 | . . 2 . . . . . . . . . . Fabricator Hacks . | . . . . . . . . . . . . . Repair Station Hacks 3 | . . 3 . . . . . . . . . . Scan Component 2 | . . 2 . . . . . . . . . . Repair 1 | . . 1 . . . . . . . . . . Recycling Unit Hacks 1 | . . . . . . . 1 . . . . . Retrieve Components 1 | . . . . . . . 1 . . . . . Scanalyzer 6 | . . 6 . . . . . . . . . . Insert Component 2 | . . 2 . . . . . . . . . . Analyze 3 | . . 3 . . . . . . . . . . Retrieve Study 1 | . . 1 . . . . . . . . . . Garrison Access Hacks . | . . . . . . . . . . . . . Unauthorized Hacks 5 | . 3 1 1 . . . . . . . . . Terminals 5 | . 3 1 1 . . . . . . . . . Botnet 2 | . . 1 1 . . . . . . . . . Skim 3 | . 3 . . . . . . . . . . . Fabricators . | . . . . . . . . . . . . . Repair Stations . | . . . . . . . . . . . . . Recycling Units . | . . . . . . . . . . . . . Scanalyzers . | . . . . . . . . . . . . . Garrison Access . | . . . . . . . . . . . . . Data Cores Recovered . | . . . . . . . . . . . . . Used . | . . . . . . . . . . . . . Hacking Detections 18 | . 5 10 1 . . . 1 . . . . 1 Full Trace Events 1 | . . 1 . . . . . . . . . . Feedback Events . | . . . . . . . . . . . . . Feedback Blocked . | . . . . . . . . . . . . . Robot Schematics Acquired . | . . . . . . . . . . . . . Robots Built . | . . . . . . . . . . . . . Authchips . | . . . . . . . . . . . . . Time . | . . . . . . . . . . . . . Total Robot Build Rating . | . . . . . . . . . . . . . Part Schematics Acquired 6 | . . 2 . . . . . . . 4 . . Parts Built . | . . . . . . . . . . . . . Authchips . | . . . . . . . . . . . . . Time . | . . . . . . . . . . . . . Total Part Build Rating . | . . . . . . . . . . . . . Part Studies Acquired . | . . . . . . . . . . . . . Parts Repaired 1 | . . 1 . . . . . . . . . . Time 16 | . . 16 . . . . . . . . . . Parts Recycled . | . . . . . . . . . . . . . Recycled Matter . | . . . . . . . . . . . . . Retrieved Matter . | . . . . . . . . . . . . . Retrieved Components 10 | . . . . . . . 10 . . . . . Parts Scanalyzed 2 | . . 2 . . . . . . . . . . Part Schematics Acquired 2 | . . 2 . . . . . . . . . . Parts Damaged . | . . . . . . . . . . . . . Bothacking | -11 -10 -9 -8 -7 -6 -5 -4 -4 -4 -4 -3 -3 ------------ Run | Yrd Mat Mat Mat Fac Fac Fac Fac Upp Upp Zhi Pro Res Used RIF Installer . | . . . . . . . . . . . . . Robots Hacked . | . . . . . . . . . . . . . Non-combat . | . . . . . . . . . . . . . Combat . | . . . . . . . . . . . . . Robot Hacks Applied . | . . . . . . . . . . . . . Relay Couplers Released . | . . . . . . . . . . . . . Fabnet Peak Effective % . | . . . . . . . . . . . . . Robots Rewired 1 | . . . . . . . . . . . 1 . Allies Hacked . | . . . . . . . . . . . . . Hacks Repelled . | . . . . . . . . . . . . . Allies | -11 -10 -9 -8 -7 -6 -5 -4 -4 -4 -4 -3 -3 -------- Run | Yrd Mat Mat Mat Fac Fac Fac Fac Upp Upp Zhi Pro Res Total Allies 1 | . . . . . . . . . . . 1 . Largest Group 1 | . . . . . . . . . . . 1 . Highest-Rated Group 47 | . . . . . . . . . . . 47 . Highest-Rated Ally 47 | . . . . . . . . . . . 47 . Total Orders . | . . . . . . . . . . . . . Ally Attacks 3 | . . . . . . . . . . . 3 . Total Damage 77 | . . . . . . . . . . . 77 . Kills . | . . . . . . . . . . . . . Allies Corrupted . | . . . . . . . . . . . . . Allies Melted . | . . . . . . . . . . . . . Intel | -11 -10 -9 -8 -7 -6 -5 -4 -4 -4 -4 -3 -3 ------- Run | Yrd Mat Mat Mat Fac Fac Fac Fac Upp Upp Zhi Pro Res Active Infowar (turns) 9957 | 27 462 60 371 1137 670 453 706 1463 2852 367 1389 . Optics 8163 | . . . 371 1137 670 453 706 1463 2852 367 144 . Sensors 5617 | . . . . . . . . 1379 2678 243 1317 . Seismic 3888 | 27 462 60 348 1137 670 453 706 25 . . . . Jamming 98 | . . . . . . . . . . . 98 . Robot Analysis Total 4 | . . . . . . . . . . 4 . . Derelict Logs Recovered 3 | . . . . . . . . 2 1 . . . Drone Launches . | . . . . . . . . . . . . . Drone Recoveries . | . . . . . . . . . . . . . Exploration | -11 -10 -9 -8 -7 -6 -5 -4 -4 -4 -4 -3 -3 ------------- Run | Yrd Mat Mat Mat Fac Fac Fac Fac Upp Upp Zhi Pro Res Turns Passed 13402 | 119 1130 2403 443 1137 670 453 706 1463 2852 367 1465 194 Spaces Moved 6487 | 57 561 1077 241 647 387 237 325 850 875 155 735 340 Core 305 | 9 . . . . . . . . . . 120 176 Treads 6018 | 48 561 1077 241 647 387 237 325 850 875 155 615 . Legs . | . . . . . . . . . . . . . Wheels . | . . . . . . . . . . . . . Hover 1 | . . . . . . . . . . . . 1 Flight 163 | . . . . . . . . . . . . 163 Fastest Speed 40 | 50 160 160 160 160 160 160 160 162 160 160 50 40 Average Speed 152 | 146 160 160 160 160 160 160 160 162 160 160 143 45 Slowest Speed 163 | 160 160 160 160 160 160 160 162 162 163 162 163 120 Overloaded Moves . | . . . . . . . . . . . . . Propulsion Burnouts . | . . . . . . . . . . . . . Robots Hopped 7 | . . . . . . . . . . . . 7 Potential Cave-ins . | . . . . . . . . . . . . . Cave-ins Triggered . | . . . . . . . . . . . . . Teleports 1 | . . . . . . . . . . . . 1 Exploration Rate (%) 45 | 4 98 92 19 21 19 10 11 83 89 61 76 14 Regions Visited 12 Branch Regions 4 Pre-discovered Areas 4 | . . . . . . . . . 1 3 . . Known Exits Taken 4 | . . . . . . . . 1 1 1 1 . Unknown Exits Taken 8 | 1 1 1 1 1 1 1 1 . . . . . Scrap Searched 4 | . . . . . . . . 1 2 . 1 . Spaces Dug 24 | . . . . . . . 1 1 . . 22 . Terrain Destroyed 229 | . . 4 2 . 3 8 7 3 9 . 192 1 Melee . | . . . . . . . . . . . . . Projectile 96 | . . . 2 . 3 2 7 3 9 . 69 1 AOE 133 | . . 4 . . . 6 . . . . 123 . Terrain Rammed . | . . . . . . . . . . . . . Walls Destroyed . | . . . . . . . . . . . . . Machines Disabled . | . . . . . . . . . . . . . Actions | -11 -10 -9 -8 -7 -6 -5 -4 -4 -4 -4 -3 -3 --------- Run | Yrd Mat Mat Mat Fac Fac Fac Fac Upp Upp Zhi Pro Res Total 9241 | 79 705 1465 290 716 431 284 430 935 2278 239 1025 364 Wait 1877 | . 42 128 33 31 22 8 46 62 1353 . 140 12 Move 6462 | 56 560 1076 240 646 386 236 324 849 874 154 734 327 Hop 6 | . . . . . . . . . . . . 6 Pick Up 78 | 7 13 25 3 6 5 . 4 6 4 2 2 1 Fast Attach 48 | 6 3 8 2 . 1 4 3 1 . 11 3 6 Attach 40 | 2 . 8 2 5 2 2 4 2 2 1 7 3 Detach 12 | 1 . 2 . . . . 1 1 . . 5 2 Swap 62 | . 12 15 1 4 3 10 4 5 1 1 6 . Drop 111 | 1 18 34 4 6 6 9 3 6 3 11 10 . Fire 462 | 6 57 169 5 18 6 15 41 3 36 . 102 4 Melee . | . . . . . . . . . . . . . Ram 5 | . . . . . . . . . . . 2 3 Kick . | . . . . . . . . . . . . . Crush 59 | . . . . . . . . . 5 54 . . Escape Stasis . | . . . . . . . . . . . . . Rewire 19 | . . . . . . . . . . 5 14 . Trap . | . . . . . . . . . . . . . Miscellaneous . | . . . . . . . . . . . . . Route ------- -11/Scrapyard -10/Materials (discovered 5 exits: *Mat x3 / [*Min] / [*Sub]) -9/Materials (discovered 5 exits: *Mat x3 / [*Min x2]) -8/Materials -7/Factory (discovered 2 exits: [*Fac] / [*Low]) -6/Factory -5/Factory -4/Factory -4/Upper Caves -4/Upper Caves (discovered 2 exits: *Res / *Zhi) -4/Zhirov -3/Proximity Caves -3/Research (discovered 3 exits: Res x2 / Tes) History --------- Turn | Location | Event 20 | -11/Scrapyard | Discovered new exit (range 15) 120 | -11/Scrapyard | Entered Materials 315 | -10/Materials | Discovered new exit (range 16) 317 | -10/Materials | Build established: Mutant 611 | -10/Materials | Discovered new exit (range 9) 969 | -10/Materials | Discovered new exit (range 10) 975 | -10/Materials | Discovered new exit (range 5) 1236 | -10/Materials | Build established: Scavenger-Mutant 1242 | -10/Materials | Discovered new exit (range 4) 1250 | -10/Materials | Entered another Materials area 1250 | -9/Materials | Evolved 2 slots: Propulsion x1, Utility x1 1588 | -9/Materials | Discovered new exit (range 8) 2062 | -9/Materials | Discovered new exit (range 13) 2231 | -9/Materials | Repaired Imp. Ion Engine 2528 | -9/Materials | Discovered new exit (range 6) 2686 | -9/Materials | Build established: Mutant 3108 | -9/Materials | Discovered new exit (range 14) 3322 | -9/Materials | Discovered new exit (range 13) 3650 | -9/Materials | First assault squad dispatched 3653 | -9/Materials | Entered another Materials area 3653 | -8/Materials | Evolved 2 slots: Utility x2 3788 | -8/Materials | Met 7R-MNS 3845 | -8/Materials | Garrison activated, responded to threat 4013 | -8/Materials | Discovered new exit (range 15) 4096 | -8/Materials | Entered Factory 4096 | -7/Factory | Evolved 2 slots: Propulsion x1, Utility x1 4097 | -7/Factory | Caught up to 7R-MNS 4381 | -7/Factory | Build established: Scavenger-Mutant 4472 | -7/Factory | Garrison activated, responded to threat 4912 | -7/Factory | Discovered new exit (range 16) 5124 | -7/Factory | Discovered new exit (range 14) 5127 | -7/Factory | Build established: Mutant 5233 | -7/Factory | Entered another Factory area 5233 | -6/Factory | Evolved 2 slots: Utility x2 5234 | -6/Factory | Caught up to 7R-MNS 5743 | -6/Factory | Discovered new exit (range 8) 5903 | -6/Factory | Entered another Factory area 5903 | -5/Factory | Evolved 2 slots: Power x1, Propulsion x1 5904 | -5/Factory | Caught up to 7R-MNS 6129 | -5/Factory | Spotted B-75 Beast 6207 | -5/Factory | Build established: Scavenger-Mutant 6288 | -5/Factory | Discovered new exit (range 5) 6356 | -5/Factory | Entered another Factory area 6356 | -4/Factory | Evolved 2 slots: Utility x2 6357 | -4/Factory | Caught up to 7R-MNS 6603 | -4/Factory | Discovered new exit (range 8) 6936 | -4/Factory | Lost 3 parts (1n1u1w) 6977 | -4/Factory | 7R-MNS successfully reached the Upper Caves 7062 | -4/Factory | Entered Upper Caves 7394 | -4/Upper Caves | Build established: Scavenger-Skirmisher 7747 | -4/Upper Caves | Learned 12 Research zone layouts 7752 | -4/Upper Caves | Learned Research terminal intel 7795 | -4/Upper Caves | Encountered a Warlord checkpoint 8057 | -4/Upper Caves | Discovered new exit (range 19) 8087 | -4/Upper Caves | Identified exit to Upper Caves 8476 | -4/Upper Caves | Lost 3 allies 8525 | -4/Upper Caves | Entered another Upper Caves area 8527 | -4/Upper Caves | Attracted the attention of an 0b10 checkpoint 8579 | -4/Upper Caves | Lost 3 parts (2p1u) 8770 | -4/Upper Caves | Discovered new exit (range 10) 8844 | -4/Upper Caves | Identified exit to Research 10150 | -4/Upper Caves | Encountered a Warlord checkpoint 10225 | -4/Upper Caves | Learned location of Quarantine (-2) 11341 | -4/Upper Caves | Discovered new exit (range 16) 11376 | -4/Upper Caves | Identified exit to Zhirov 11377 | -4/Upper Caves | Entered Zhirov 11377 | -4/Zhirov | Discovered new exit (range 3) 11382 | -4/Zhirov | Identified exit to Proximity Caves 11407 | -4/Zhirov | Met Zhirov 11444 | -4/Zhirov | Learned location of Testing (-3) 11444 | -4/Zhirov | Learned location of Command (-1) 11454 | -4/Zhirov | Zhirov requested help retrieving the SGEMP Prototype 11478 | -4/Zhirov | Found Alien Artifact 11478 | -4/Zhirov | Identified Integrated Reactor 11478 | -4/Zhirov | Installed Integrated Reactor, increased core energy generation (+10) 11500 | -4/Zhirov | Found Alien Artifact 11693 | -4/Zhirov | Build established: Scavenger-Mutant 11744 | -4/Zhirov | Entered Proximity Caves 11855 | -3/Proximity Caves | Attracted the attention of an 0b10 outpost 11895 | -3/Proximity Caves | System corruption reached 10% 11925 | -3/Proximity Caves | Lost 3 parts (3u) 13166 | -3/Proximity Caves | Attracted the attention of an 0b10 checkpoint 13198 | -3/Proximity Caves | Core integrity fell below 50% 13202 | -3/Proximity Caves | Discovered exit to Research (range 14) 13209 | -3/Proximity Caves | Entered Research 13209 | -3/Research | Evolved 2 slots: Propulsion x1, Weapon x1 13210 | -3/Research | Identified exit to Research 13210 | -3/Research | Identified exit to Testing 13211 | -3/Research | Loaded intel: 22 terminal locations 13215 | -3/Research | Lost 15 parts (1p5n6u3w) 13257 | -3/Research | Identified Transdimensional Reconstructor 13257 | -3/Research | Warped through subspace 13344 | -3/Research | Core integrity fell below 50% 13375 | -3/Research | Lost 3 parts (2n1u) 13377 | -3/Research | Core integrity fell below 20% 13390 | -3/Research | Build established: Mutant 13400 | -3/Research | Spotted B-86 Titan 13403 | -3/Research | Destroyed by G-67 Veteran with Plasma Rifle Last Messages --------------- 13345_ Slug penetrates Wall. 13346_ Slammed into K-01 Serf. 13347_ Slammed into S-43 Plague. 13347_ Destabilizing: System interference. 13347_ Adv. Component Analysis Suite temporarily disabled. 13350_ Acquired Unknown Flight Unit. 13350_ Identified Field Propulsion Array. 13351_ Slug penetrates Wall. 13371_ Penetrated by Slug. 13372_ Slug penetrates Wall. 13380_ Slug penetrates Door. 13384_ Connecting with DSF Access... 13385_ Field Propulsion Array destroyed. 13389_ Slammed into W-44 Eye. 13392_ Adv. Component Analysis Suite destroyed. 13396_ W-44 Eye sends out distress signal. 13399_ Critical hit (Burn: +37). 13401_ Catalytron disabled. 13401_ Penetrated by Slug. 13401_ Slug penetrates Wall. Map ----- +----------------------------------------------------+ | ##??????????????????????????????????????????????? | | # ??????????????????????????????????????????????? | | ##??????????????????????????????????????????????? | | #???????????????????????????????????????????????? | | #???????????????????????????????????????????????? | | #???????????????????????????????????????????????? | | #???????????????????????????????????????????????? | | ###??????????????????????????????????????????????? | | ??????????????????????????????????????????????? | | ??????????????????????????????????????????????? | | ??????????????????????????????????????????????? | | ##""" """ + ?????????????????????? | | ## ####??? ????????????????? | | ## #????? #???????????????? | | #+###############+########### #???????????????? | | ###?????????????? | | BB#?????????????? | | BB??????????????? | | "" """ #???????????????? | | ########+###### """ """ #???????????????? | | ??# #?# "R " = #???????????????? | | ??# #?# """ #???????????????? | | ??# #?# b"""g #???????????????? | | ??# """"" #?# A u !k #???????????????? | | ??# """"" #?# w g #???????????????? | | ??# """"" #?# kAgsssg k@ k #???????????????? | | ??# #?# g######/###/####???????????????? | | ??# #?# # # ?????????????????????? | | ??###########?# # # ! ????????????????????? | | ???????# #????# + # ???????????????????? | | ???????# #????# # # ?????????????????? | | ???????# #????# # # ????????????????? | | ???????# #????# ###### ???????????????? | | ?????###########+######## +??????????????? | | ###??# ## * #??????????????? | | #??# ! ############??????????????? | | ???# """ #?????????????????????????? | | ???# """ #?????????????????????????? | | #??# """ #?????????????????????????? | | #??# ""T"" #?????????????????????????? | | #??# """"" #?????????????????????????? | | #??######/############?????????????????????????? | | #???????# #????????????????????????????????????? | | #???????# #????????????????????????????????????? | | #???????# #????????????????????????????????????? | | #?####??# #????????????????????????????????????? | | #/###T #### #????????????????????????????????????? | | #????????????????????????????????????? | | #????????????????????????????????????? | | +????????????????????????????????????? | +----------------------------------------------------+ Best States ------------- Heat Dissipation 77 Coolant Potential 100 Energy Generation 51 Energy Capacity 410 Matter Stores 300 Matter Capacity 300 Sight Range 22 Robot Scan Range 16 Terrain Scan Density 10 Jamming Range 14 Armor Coverage 600 Weapon Shielding 66 Evasion (%) 62 Targeting Accuracy 6 Core Analysis 6 Armor Integrity Analysis 30 Recoil Reduction 5 Offensive Hacking 10 Item Schematics ----------------- Cesium-ion Thruster | -9/Materials | Scanalyzed Adv. Beam Cannon | -9/Materials | Scanalyzed Assault Drone Bay | -4/Zhirov | Free Exp. Heat Sink | -4/Zhirov | Free Exp. Optical Array | -4/Zhirov | Free Imp. Arc Thrower | -4/Zhirov | Free Robot Schematics ------------------ None Fabricated ------------ Nothing Repaired ---------- Imp. Ion Engine | 35% | -9/Materials Studied --------- None Alien Tech Used ----------------- Integrated Reactor Transdimensional Reconstructor Achievements -------------- DATA ERROR: Steam Global Achievement% Escorted To Danger Fancy Inventory For Emergencies Only Ghost 'Em Heavy Suspicion Organ Harvest Overwhelming Spot Them First There's More Where That Came From Challenges ------------ None Game ------ Seed PrecisionChromionInterrupter Manual? 0 Play Time 01:44:00 Cumulative 412.5 hours Start 2025.11.01 @ 16:19:03 End 2025.11.01 @ 18:12:48 Sessions 2 Manual Loads 0 Difficulty Rogue Special Mode None Game No. 462 Rogue 462 Adventurer 0 Explorer 0 Win Type - Total 37 Types 27/0/7/3/0/0/0/0/0/0 Lore% 80 Gallery% 70 Achievement% 36 Wizard Run 0 Options --------- Layout 0 ASCII 0 Keyboard 1 Movement Numpad Keybinds 0 Fullscreen 1 Font 24/Smallcaps Map View 76x50 Zoom Use 0% Tactical HUD 1 Map Filters NONE Filters NONE Steam 1 RUN: 33808e52-7f22-4b73-9f2a-5e3dcc1aeaa1